bitfinex/quotes_BTCUSD_20250714
["timestamp","ask_amount","ask_price","bid_price","bid_amount"]
[1752451201764,0.01983656,118950.0,118940.0,0.19336]
[1752451202394,0.0329124,118950.0,118940.0,0.19336]
[1752451203502,0.0350124,118950.0,118940.0,0.19336]
[1752451203883,0.02193656,118950.0,118940.0,0.19336]
[1752451204119,0.02193656,118950.0,118940.0,0.48906]
[1752451205236,0.02193656,118950.0,118940.0,0.6185]
[1752451205439,0.02193656,118950.0,118940.0,0.6905]
[1752451205570,0.02193656,118950.0,118940.0,0.81978]
[1752451205788,0.02193656,118950.0,118940.0,0.91975078]
[1752451206830,0.02193656,118950.0,118940.0,0.79047078]
[1752451207229,0.02193656,118950.0,118940.0,0.78432085]
[1752451207451,0.02193656,118950.0,118940.0,0.70504085]
[1752451207609,0.02193656,118950.0,118940.0,0.83432085]
[1752451208210,0.02193656,118950.0,118940.0,0.83932085]
[1752451208892,0.02185025,118950.0,118940.0,0.83932085]
[1752451210015,0.02085025,118950.0,118940.0,0.83932085]
[1752451210477,0.02085025,118950.0,118940.0,0.84032085]
[1752451210927,0.02085025,118950.0,118940.0,0.83932085]
[1752451211386,0.02085025,118950.0,118940.0,0.92775078]
[1752451214542,0.02085025,118950.0,118940.0,0.91320993]
[1752451215940,0.08042441,118970.0,118960.0,0.34984975]
[1752451216214,0.08042441,118970.0,118960.0,0.48139899]
[1752451216413,0.08042441,118970.0,118960.0,0.48446899]
[1752451216849,0.14320441,118970.0,118960.0,0.52923899]
[1752451217041,0.14320441,118970.0,118960.0,0.39999899]
[1752451217257,0.14320441,118970.0,118960.0,0.53023899]
[1752451217457,0.14320441,118970.0,118960.0,0.53323899]
[1752451217650,0.14320441,118970.0,118960.0,0.53630899]
[1752451217891,0.14320441,118970.0,118960.0,0.53846899]
[1752451218571,0.01325584,118970.0,118960.0,0.53846899]
[1752451218793,0.01307584,118970.0,118960.0,0.53846899]
[1752451219010,0.01307584,118970.0,118960.0,0.73986899]
[1752451219191,0.0631,118980.0,118960.0,0.73986899]
[1752451219397,0.14852993,118980.0,118970.0,0.075]
[1752451219648,0.14870993,118980.0,118970.0,0.075]
[1752451219861,0.16226278,118980.0,118970.0,0.07710137]
[1752451220080,0.16226278,118980.0,118970.0,0.08017137]
[1752451220292,0.01373285,118980.0,118970.0,0.08233137]
[1752451220499,0.01355285,118980.0,118970.0,0.08233137]
[1752451220620,0.01355285,118980.0,118970.0,0.08333137]
[1752451220830,0.1548841,118990.0,118970.0,0.08333137]
[1752451221033,0.24031403,118990.0,118980.0,0.12924]
[1752451221232,0.24049403,118990.0,118980.0,0.12924]
[1752451222969,0.24149403,118990.0,118980.0,0.12924]
[1752451223532,0.17414546,118990.0,118980.0,0.12924]
[1752451223799,0.17414546,118990.0,118980.0,0.33064]
[1752451224398,0.18742529,118990.0,118980.0,0.33064]
[1752451224804,0.18742529,118990.0,118980.0,0.60548975]
[1752451226452,0.18742529,118990.0,118980.0,0.47624975]
[1752451226663,0.18742529,118990.0,118980.0,0.60548975]
[1752451226872,0.18753529,118990.0,118980.0,0.60548975]
[1752451227486,0.18753529,118990.0,118980.0,0.47624975]
[1752451227705,0.18753529,118990.0,118980.0,0.60548975]
[1752451228912,0.17425546,118990.0,118980.0,0.60548975]
[1752451229468,0.1741599,118990.0,118980.0,0.60548975]
[1752451231214,0.1740499,118990.0,118980.0,0.60548975]
[1752451231662,0.6740499,118990.0,118980.0,0.2014]
[1752451231860,0.18987753,118990.0,118980.0,0.3306]
[1752451232035,0.1741599,118990.0,118980.0,0.3306]
[1752451232238,0.1741599,118990.0,118980.0,0.2014]
[1752451232239,0.18775321,118990.0,118980.0,0.2014]
[1752451232573,0.0641,118970.0,118960.0,0.34999899]
[1752451232721,0.64952993,118970.0,118960.0,0.68059899]
[1752451233105,0.64970993,118970.0,118960.0,0.68059899]
[1752451233751,0.64970993,118970.0,118960.0,0.68359899]
[1752451234196,0.64970993,118970.0,118960.0,0.47939899]
[1752451234568,0.64981993,118970.0,118960.0,0.60859899]
[1752451234752,0.64973024,118970.0,118960.0,0.60859899]
[1752451235383,0.64973024,118970.0,118960.0,0.60959899]
[1752451236124,0.64962024,118970.0,118960.0,0.60859899]
[1752451236273,0.64962024,118970.0,118960.0,0.60559899]
[1752451236466,0.14962024,118970.0,118960.0,0.33074924]
[1752451236718,0.14973024,118970.0,118960.0,0.33174924]
[1752451236911,0.64973024,118970.0,118960.0,0.33174924]
[1752451237121,0.6496797,118970.0,118960.0,0.33174924]
[1752451237365,0.6496797,118970.0,118960.0,0.60659899]
[1752451237509,0.6496797,118970.0,118960.0,0.20254924]
[1752451237713,0.15952584,118970.0,118960.0,0.2014]
[1752451237892,0.14382393,118970.0,118960.0,0.2014]
[1752451238511,0.14482393,118970.0,118960.0,0.2014]
[1752451239050,0.14342393,118970.0,118960.0,0.33064]
[1752451239459,0.0315,118950.0,118940.0,0.34984975]
[1752451239672,0.11699697,118950.0,118940.0,0.34999905]
[1752451239980,0.11699697,118950.0,118940.0,0.27499905]
[1752451240182,0.11710697,118950.0,118940.0,0.27499905]
[1752451240391,0.14830697,118950.0,118940.0,0.27499905]
[1752451240650,0.64830697,118950.0,118940.0,0.40419905]
[1752451241059,0.64819697,118950.0,118940.0,0.40619905]
[1752451241470,0.64819697,118950.0,118940.0,0.40719905]
[1752451241676,0.64830697,118950.0,118940.0,0.1323493]
[1752451242374,0.64830697,118950.0,118940.0,0.1293493]
[1752451242834,0.14830697,118950.0,118940.0,0.1303493]
[1752451243079,0.14830697,118950.0,118940.0,0.1293493]
[1752451243292,0.17440597,118950.0,118940.0,0.1293493]
[1752451243705,0.64919697,118950.0,118940.0,0.1293493]
[1752451244708,0.67440497,118950.0,118940.0,0.1293493]
[1752451245309,0.67440497,118950.0,118940.0,0.3307893]
[1752451245466,1.01440497,118950.0,118940.0,0.3307893]
[1752451245718,0.51451497,118950.0,118940.0,0.3307893]
[1752451245932,0.51451497,118950.0,118940.0,0.2015893]
[1752451246145,0.51451497,118950.0,118940.0,0.3308293]
[1752451246976,0.51551497,118950.0,118940.0,0.3308293]
[1752451248290,0.51540497,118950.0,118940.0,0.3339093]
[1752451248437,0.42742993,118950.0,118940.0,0.4429293]
[1752451249034,0.42742993,118950.0,118940.0,0.4735293]
[1752451249679,0.42742993,118950.0,118940.0,0.3985293]
[1752451249881,0.42742993,118950.0,118940.0,0.4735293]
[1752451251288,0.42742993,118950.0,118940.0,0.67337905]
[1752451251526,0.342,118950.0,118940.0,0.79837905]
[1752451251723,0.342,118950.0,118940.0,0.79833905]
[1752451253698,0.342,118950.0,118940.0,0.66913905]
[1752451253896,0.342,118950.0,118940.0,0.79833905]
[1752451254195,0.342,118950.0,118940.0,0.59663981]
[1752451254406,0.342,118950.0,118940.0,0.79807981]
[1752451255024,0.342,118950.0,118940.0,0.66887981]
[1752451255224,0.342,118950.0,118940.0,0.79807981]
[1752451255343,0.342,118950.0,118940.0,0.66887981]
[1752451255544,0.342,118950.0,118940.0,0.79807981]
[1752451255787,0.342,118950.0,118940.0,0.66887981]
[1752451255987,0.342,118950.0,118940.0,0.79807981]
[1752451261291,0.342,118950.0,118940.0,0.66887981]
[1752451261496,0.342,118950.0,118940.0,0.71747981]
[1752451261687,0.42742993,118950.0,118940.0,0.68557981]
[1752451262337,0.42777993,118950.0,118940.0,0.55637981]
[1752451262525,0.42777993,118950.0,118940.0,0.68557981]
[1752451262740,0.45777993,118950.0,118940.0,0.68557981]
[1752451263069,0.42777993,118950.0,118940.0,0.68557981]
[1752451263722,0.42742993,118950.0,118940.0,0.68557981]
[1752451264744,0.48877993,118950.0,118940.0,0.55128975]
[1752451264959,0.50448792,118950.0,118940.0,0.33064]
[1752451265163,0.48877993,118950.0,118940.0,0.40564]
[1752451265283,0.50448878,118950.0,118940.0,0.68048975]
[1752451265488,0.50448878,118950.0,118940.0,0.33064]
[1752451265694,0.50448878,118950.0,118940.0,0.40564]
[1752451266379,0.50448878,118950.0,118940.0,0.33064]
[1752451266580,0.50448878,118950.0,118940.0,0.40564]
[1752451270505,0.50448878,118950.0,118940.0,0.20144]
[1752451270706,0.0632,118930.0,118920.0,0.00499]
[1752451271034,0.14897993,118930.0,118920.0,0.33571518]
[1752451271232,0.08577993,118930.0,118920.0,0.33776518]
[1752451271471,0.08577993,118930.0,118920.0,0.41276518]
[1752451271472,0.08542993,118930.0,118920.0,0.41276518]
[1752451271881,0.08542993,118930.0,118920.0,0.33976518]
[1752451272148,0.08542993,118930.0,118920.0,0.41476518]
[1752451272375,0.08577993,118930.0,118920.0,0.41476518]
[1752451272577,0.08577993,118930.0,118920.0,0.33771518]
[1752451272578,0.15097993,118930.0,118920.0,0.33771518]
[1752451272786,0.15097993,118930.0,118920.0,0.41271518]
[1752451274061,0.15097993,118930.0,118920.0,0.28056518]
[1752451274265,0.49097993,118930.0,118920.0,0.33472518]
[1752451274475,0.50668837,118930.0,118920.0,0.33472518]
[1752451275117,0.50668837,118930.0,118920.0,0.33572518]
[1752451275528,0.44113837,118930.0,118920.0,0.34076518]
[1752451276682,0.44148837,118930.0,118920.0,0.34076518]
[1752451277841,0.52964321,118930.0,118920.0,0.33871518]
[1752451279598,0.52964321,118930.0,118920.0,0.33572518]
[1752451282640,0.52962146,118930.0,118920.0,0.33572518]
[1752451283268,0.55483246,118930.0,118920.0,0.33572518]
[1752451290315,0.55483246,118930.0,118920.0,0.20656518]
[1752451290524,0.55483246,118930.0,118920.0,0.33572518]
[1752451290898,0.4041,118920.0,118910.0,0.2961]
[1752451291155,0.48987993,118920.0,118910.0,0.49772936]
[1752451291973,0.48987993,118920.0,118910.0,0.70682936]
[1752451292546,0.42542993,118920.0,118910.0,0.70890936]
[1752451293347,0.42542993,118920.0,118910.0,0.70990936]
[1752451293964,0.42542993,118920.0,118910.0,0.74140936]
[1752451294368,0.42542993,118920.0,118910.0,0.77190936]
[1752451296069,0.48967993,118920.0,118910.0,0.70692936]
[1752451296296,0.42542993,118920.0,118910.0,0.70990936]
[1752451298901,0.42542993,118920.0,118910.0,0.63490936]
[1752451299103,0.42542993,118920.0,118910.0,0.70990936]
[1752451299311,0.42577993,118920.0,118910.0,0.70990936]
[1752451300021,0.42577993,118920.0,118910.0,0.50578936]
[1752451300234,0.48847993,118920.0,118910.0,0.50072936]
[1752451300439,0.50442603,118920.0,118910.0,0.62984936]
[1752451300912,0.50382603,118920.0,118910.0,0.20148]
[1752451301057,0.50382603,118920.0,118910.0,0.3306]
[1752451301264,0.0626,118910.0,118900.0,0.20348]
[1752451301468,0.48859993,118910.0,118900.0,0.20348]
[1752451301684,0.50432603,118910.0,118900.0,0.20148]
[1752451302057,0.44172603,118910.0,118900.0,0.20152]
[1752451302312,0.50432603,118910.0,118900.0,0.20152]
[1752451302536,0.4021,118900.0,118890.0,0.0004]
[1752451302737,0.50360603,118900.0,118890.0,0.1325]
[1752451303173,0.52882403,118900.0,118890.0,0.1325]
[1752451303586,0.46637403,118900.0,118890.0,0.13458]
[1752451303804,0.47883469,118900.0,118890.0,0.13458]
[1752451304239,0.47883469,118900.0,118890.0,0.00546]
[1752451304454,0.47883469,118900.0,118890.0,0.13458]
[1752451304681,0.47983469,118900.0,118890.0,0.13458]
[1752451304890,0.48018469,118900.0,118890.0,0.13458]
[1752451305323,0.47983469,118900.0,118890.0,0.3969]
[1752451305552,0.45461669,118900.0,118890.0,0.4719]
[1752451306205,0.114596,118900.0,118890.0,0.4719]
[1752451306418,0.09889059,118900.0,118890.0,0.4111]
[1752451307093,0.09889059,118900.0,118890.0,0.4423]
[1752451307514,0.09889059,118900.0,118890.0,0.4724]
[1752451307730,0.09889059,118900.0,118890.0,0.4111]
[1752451309197,0.43889059,118900.0,118890.0,0.4111]
[1752451309399,0.4545923,118900.0,118890.0,0.4111]
[1752451309988,0.4545923,118900.0,118890.0,0.4431]
[1752451310557,0.4545923,118900.0,118890.0,0.7388]
[1752451310918,0.4545923,118900.0,118890.0,0.7068]
[1752451311994,0.4545923,118900.0,118890.0,0.7376]
[1752451313730,0.4545923,118900.0,118890.0,0.7068]
[1752451314307,0.4545923,118900.0,118890.0,0.6318]
[1752451314521,0.4545923,118900.0,118890.0,0.7068]
[1752451314731,0.4549423,118900.0,118890.0,0.49762]
[1752451314939,0.56473557,118900.0,118890.0,0.20152]
[1752451315139,0.54467934,118900.0,118890.0,0.20152]
[1752451315313,0.4043,118890.0,118880.0,0.20192]
[1752451315533,0.50578068,118890.0,118880.0,0.20192]
[1752451316546,0.50578068,118890.0,118880.0,0.331]
[1752451317701,0.50577588,118890.0,118880.0,0.331]
[1752451318096,0.50577595,118890.0,118880.0,0.332]
[1752451318532,0.505772,118890.0,118880.0,0.332]
[1752451320539,0.441122,118890.0,118880.0,0.36869]
[1752451320747,0.441122,118890.0,118880.0,0.40179]
[1752451320947,0.441122,118890.0,118880.0,0.33709]
[1752451321154,0.504922,118890.0,118880.0,0.33709]
[1752451321372,0.505272,118890.0,118880.0,0.33709]
[1752451321599,0.505272,118890.0,118880.0,0.33498]
[1752451322373,0.505272,118890.0,118880.0,0.63068]
[1752451322580,0.50526634,118890.0,118880.0,0.63068]
[1752451323455,0.50526634,118890.0,118880.0,0.6277]
[1752451324303,0.50526634,118890.0,118880.0,0.63068]
[1752451324512,0.53048634,118890.0,118880.0,0.6277]
[1752451325580,0.53048796,118890.0,118880.0,0.63068]
[1752451327831,0.46668796,118890.0,118880.0,0.63279]
[1752451327998,0.46633796,118890.0,118880.0,0.63279]
[1752451328410,0.46634711,118890.0,118880.0,0.63279]
[1752451328744,0.52829711,118890.0,118880.0,0.63279]
[1752451329521,0.49669711,118890.0,118880.0,0.63279]
[1752451329728,0.12634711,118890.0,118880.0,0.69569]
[1752451329935,0.11064993,118890.0,118880.0,0.69569]
[1752451330136,0.45064993,118890.0,118880.0,0.63279]
[1752451330342,0.46634711,118890.0,118880.0,0.63279]
[1752451330766,0.46634711,118890.0,118880.0,0.69569]
[1752451331186,0.46634711,118890.0,118880.0,0.66329]
[1752451331393,0.46634711,118890.0,118880.0,0.63279]
[1752451333093,0.46669711,118890.0,118880.0,0.46086093]
[1752451333307,0.53239711,118890.0,118880.0,0.46086093]
[1752451333540,0.53239711,118890.0,118880.0,0.45246114]
[1752451333754,0.53239711,118890.0,118880.0,0.42306186]
[1752451333967,0.53239711,118890.0,118880.0,0.41466207]
[1752451334182,0.51669993,118890.0,118880.0,0.20156]
[1752451334798,0.34,118880.0,118870.0,0.06118042]
[1752451335012,0.42542993,118880.0,118870.0,0.25645063]
[1752451335445,0.42754993,118880.0,118870.0,0.37709084]
[1752451335623,0.45277093,118880.0,118870.0,0.33271]
[1752451335924,0.45277093,118880.0,118870.0,0.24176105]
[1752451336149,0.45277093,118880.0,118870.0,0.24436911]
[1752451336351,0.45277093,118880.0,118870.0,0.23596932]
[1752451336682,0.45573093,118880.0,118870.0,0.22856953]
[1752451337041,0.45573093,118880.0,118870.0,0.22016974]
[1752451337255,0.45573093,118880.0,118870.0,0.34920974]
[1752451337466,0.45573093,118880.0,118870.0,0.21376995]
[1752451337674,0.45573093,118880.0,118870.0,0.21587995]
[1752451337906,0.45573093,118880.0,118870.0,0.20748016]
[1752451338336,0.45573093,118880.0,118860.0,0.0649]
[1752451338548,0.08542993,118870.0,118860.0,0.0649]
[1752451338758,0.42542993,118870.0,118860.0,0.06701]
[1752451339207,0.42542993,118870.0,118860.0,0.19605]
[1752451339736,0.45009222,118870.0,118860.0,0.19805]
[1752451340123,0.45009222,118870.0,118860.0,0.49375]
[1752451340327,0.45009222,118870.0,118860.0,0.49175]
[1752451341024,0.45009222,118870.0,118860.0,0.49475]
[1752451343460,0.45305222,118870.0,118860.0,0.49475]
[1752451345290,0.45305222,118870.0,118860.0,0.69631]
[1752451345629,0.45517222,118870.0,118860.0,0.50437]
[1752451345844,0.45517222,118870.0,118860.0,0.6313]
[1752451346186,0.48039422,118870.0,118860.0,0.6313]
[1752451347225,0.48039422,118870.0,118860.0,0.6303]
[1752451347435,0.48039422,118870.0,118860.0,0.6283]
[1752451347635,0.48039422,118870.0,118860.0,0.6303]
[1752451347815,0.48039422,118870.0,118860.0,0.6293]
[1752451348223,0.48139422,118870.0,118860.0,0.6293]
[1752451349359,0.48139422,118870.0,118860.0,0.46245775]
[1752451349360,0.54269422,118870.0,118860.0,0.46245775]
[1752451349586,0.54269422,118870.0,118860.0,0.20256]
[1752451349792,0.54729422,118870.0,118860.0,0.20156]
[1752451349994,0.54729422,118870.0,118840.0,0.0004]
[1752451350154,0.4059,118860.0,118850.0,0.2016]
[1752451350359,0.49640993,118860.0,118850.0,0.2016]
[1752451350740,0.49640993,118860.0,118830.0,0.32109775]
[1752451350942,0.42862993,118850.0,118840.0,0.12904]
[1752451351169,0.42974993,118850.0,118830.0,0.32109775]
[1752451351723,0.42974993,118850.0,118830.0,0.32209775]
[1752451351952,0.08974993,118850.0,118830.0,0.32209775]
[1752451352216,0.34,118840.0,118830.0,0.32109775]
[1752451352448,0.42542993,118840.0,118830.0,0.45206775]
[1752451353094,0.42542993,118840.0,118830.0,0.45306775]
[1752451353946,0.08542993,118840.0,118830.0,0.32542775]
[1752451354226,0.08542993,118840.0,118830.0,0.45442775]
[1752451354525,0.08542993,118840.0,118830.0,0.45342775]
[1752451354993,0.08542993,118840.0,118830.0,0.32306775]
[1752451355208,0.08542993,118840.0,118830.0,0.32406775]
[1752451355421,0.08542993,118840.0,118830.0,0.65466775]
[1752451356971,0.42542993,118840.0,118830.0,0.65602775]
[1752451357588,0.42542993,118840.0,118830.0,0.65466775]
[1752451359873,0.42542993,118840.0,118830.0,0.52566775]
[1752451360121,0.42542993,118840.0,118830.0,0.65466775]
[1752451361203,0.42862993,118840.0,118830.0,0.65466775]
[1752451362464,0.42542993,118840.0,118830.0,0.65466775]
[1752451364584,0.42477467,118840.0,118830.0,0.65466775]
[1752451369027,0.43009467,118840.0,118830.0,0.46249775]
[1752451369228,0.49499467,118840.0,118830.0,0.4540952]
[1752451369462,0.52022467,118840.0,118830.0,0.5830952]
[1752451369665,0.52022467,118840.0,118830.0,0.57469265]
[1752451369879,0.52022467,118840.0,118830.0,0.44569265]
[1752451370081,0.52022467,118840.0,118830.0,0.4372901]
[1752451370491,0.52022467,118840.0,118830.0,0.55788755]
[1752451370854,0.52022467,118840.0,118830.0,0.549485]
[1752451371314,0.52022467,118840.0,118830.0,0.54108245]
[1752451371662,0.52022467,118840.0,118830.0,0.5326799]
[1752451371999,0.52022467,118840.0,118830.0,0.52427735]
[1752451372209,0.52022467,118840.0,118830.0,0.52327735]
[1752451372462,0.52022467,118840.0,118830.0,0.5148748]
[1752451372604,0.52022467,118840.0,118830.0,0.3306]
[1752451372777,0.52022467,118840.0,118830.0,0.20164]
[1752451373191,0.52042467,118840.0,118830.0,0.20164]
[1752451373646,0.51732467,118840.0,118830.0,0.20164]
[1752451373859,0.53304434,118840.0,118830.0,0.20164]
[1752451374067,0.53304434,118840.0,118830.0,0.33064]
[1752451374496,0.51832467,118840.0,118820.0,0.1846748]
[1752451374736,0.0032,118830.0,118820.0,0.1846748]
[1752451374977,0.09074993,118830.0,118820.0,0.1846748]
[1752451375220,0.09074993,118830.0,118820.0,0.3863148]
[1752451375652,0.09074993,118830.0,118820.0,0.5153148]
[1752451375860,0.09074993,118830.0,118820.0,0.51546425]
[1752451376084,0.09074993,118830.0,118820.0,0.38646425]
[1752451376296,0.09074993,118830.0,118820.0,0.51542425]
[1752451376521,0.11598093,118830.0,118820.0,0.51542425]
[1752451378306,0.11598093,118830.0,118820.0,0.51546425]
[1752451378506,0.11698093,118830.0,118820.0,0.51546425]
[1752451383236,0.17808093,118830.0,118820.0,0.51546425]
[1752451384010,0.11698093,118830.0,118820.0,0.51546425]
[1752451387597,0.11698093,118830.0,118820.0,0.20178945]
[1752451387598,0.5890295,118830.0,118820.0,0.20178945]
[1752451387826,0.5890295,118830.0,118820.0,0.33074945]
[1752451388038,0.5890295,118830.0,118820.0,0.20164]
[1752451388479,0.53887035,118830.0,118820.0,0.20164]
[1752451388675,0.60847817,118830.0,118820.0,0.20164]
[1752451388818,0.34,118820.0,118810.0,0.20164]
[1752451389050,0.49085993,118820.0,118800.0,0.16881648]
[1752451389245,0.08542993,118810.0,118800.0,0.16881648]
[1752451389565,0.08856993,118810.0,118800.0,0.33176648]
[1752451389773,0.45380593,118810.0,118800.0,0.33176648]
[1752451390025,0.47903183,118810.0,118800.0,0.33176648]
[1752451390525,0.48102183,118810.0,118800.0,0.33176648]
[1752451391992,0.48659366,118810.0,118800.0,0.36456648]
[1752451392204,0.48659366,118810.0,118800.0,0.41592648]
[1752451392205,0.06116373,118810.0,118800.0,0.41592648]
[1752451392404,0.03593783,118810.0,118800.0,0.41592648]
[1752451392651,0.01070183,118810.0,118800.0,0.41592648]
[1752451392856,0.02523,118820.0,118810.0,0.1157]
[1752451393073,0.42542993,118830.0,118820.0,0.0657]
[1752451393276,0.025229,118830.0,118820.0,0.287417]
[1752451393482,0.03612342,118830.0,118820.0,0.287417]
[1752451393723,0.01089442,118830.0,118820.0,0.287417]
[1752451393923,0.025225,118840.0,118830.0,0.0606]
[1752451394182,0.365225,118840.0,118830.0,0.359917]
[1752451394394,0.365225,118840.0,118830.0,0.24301]
[1752451394603,0.025225,118840.0,118830.0,0.24301]
[1752451395039,0.025225,118840.0,118830.0,0.53871]
[1752451395454,0.06734857,118850.0,118840.0,0.0632]
[1752451395658,0.34,118860.0,118850.0,0.0632]
[1752451395864,0.42542993,118860.0,118850.0,0.19421]
[1752451396283,0.46158101,118860.0,118850.0,0.19421]
[1752451396690,0.12358101,118860.0,118850.0,0.19421]
[1752451396906,0.12358101,118860.0,118850.0,0.19557]
[1752451397112,0.03815108,118860.0,118850.0,0.24557]
[1752451397520,0.04215108,118860.0,118850.0,0.24557]
[1752451397937,0.03815108,118860.0,118850.0,0.24557]
[1752451398159,0.04015108,118860.0,118850.0,0.24557]
[1752451401559,0.03815108,118860.0,118850.0,0.24421]
[1752451401778,0.04328108,118860.0,118850.0,0.18101]
[1752451401962,0.04229108,118860.0,118850.0,0.21131]
[1752451402167,0.03915108,118860.0,118850.0,0.24181]
[1752451403588,0.03915108,118860.0,118850.0,0.21131]
[1752451403805,0.04229108,118860.0,118850.0,0.21131]
[1752451404005,0.03915108,118860.0,118850.0,0.24441]
[1752451404210,0.03915108,118860.0,118850.0,0.11685]
[1752451404420,0.03915108,118860.0,118850.0,0.24573]
[1752451405460,0.01392808,118860.0,118850.0,0.54143]
[1752451407760,0.025219,118870.0,118860.0,0.2927]
[1752451407982,0.01734427,118890.0,118880.0,0.1132]
[1752451408203,0.0065317,118890.0,118880.0,0.37301]
[1752451408455,0.00214925,118890.0,118880.0,0.37301]
[1752451408896,0.00214925,118890.0,118880.0,0.66707]
[1752451410002,0.01317231,118890.0,118880.0,0.66707]
[1752451410412,0.01317231,118890.0,118880.0,0.66907]
[1752451419272,0.00214925,118890.0,118880.0,0.66907]
[1752451420122,0.45097534,118910.0,118890.0,0.35405075]
[1752451420358,0.53690333,118910.0,118900.0,0.45916]
[1752451420561,0.53890333,118910.0,118900.0,0.45916]
[1752451421583,0.53990333,118910.0,118900.0,0.45916]
[1752451421989,0.53990333,118910.0,118900.0,0.46113]
[1752451422145,0.54090333,118910.0,118900.0,0.46113]
[1752451422536,0.47155476,118910.0,118900.0,0.46113]
[1752451422741,0.04315483,118910.0,118900.0,0.57453]
[1752451422950,0.01794283,118910.0,118900.0,0.57453]
[1752451423955,0.01794283,118910.0,118900.0,0.86644075]
[1752451424191,0.01356038,118910.0,118900.0,0.86644075]
[1752451424835,0.01256038,118910.0,118900.0,0.86644075]
[1752451425246,0.01256038,118910.0,118900.0,0.86508075]
[1752451425675,0.01156038,118910.0,118900.0,0.66352075]
[1752451425898,0.07713038,118910.0,118900.0,0.49207075]
[1752451426115,0.16256031,118910.0,118900.0,0.62083075]
[1752451426335,0.17821703,118910.0,118900.0,0.62083075]
[1752451427450,0.18604718,118910.0,118900.0,0.62083075]
[1752451427895,0.52604718,118910.0,118900.0,0.62083075]
[1752451431163,0.55126018,118910.0,118900.0,0.62083075]
[1752451432674,0.55128651,118910.0,118900.0,0.62083075]
[1752451433756,0.55129136,118910.0,118900.0,0.62083075]
[1752451437089,0.55129136,118910.0,118900.0,0.49207075]
[1752451437303,0.56583221,118910.0,118900.0,0.33024]
[1752451437719,0.57172262,118910.0,118900.0,0.33024]
[1752451439431,0.57372262,118910.0,118900.0,0.33024]
[1752451439655,0.57272262,118910.0,118900.0,0.33024]
[1752451439968,0.57172262,118910.0,118900.0,0.33024]
[1752451440382,0.57372262,118910.0,118900.0,0.33024]
[1752451440594,0.58010507,118910.0,118900.0,0.33024]
[1752451440776,0.58010507,118910.0,118900.0,0.20152]
[1752451440981,0.55069661,118910.0,118900.0,0.20152]
[1752451441186,0.0639,118890.0,118870.0,0.29055075]
[1752451441396,0.08746195,118890.0,118880.0,0.20152]
[1752451441598,0.51490188,118890.0,118880.0,0.20152]
[1752451441807,0.54012088,118890.0,118880.0,0.20152]
[1752451442010,0.54011749,118890.0,118880.0,0.33024]
[1752451442222,0.54325749,118890.0,118880.0,0.33024]
[1752451442442,0.54325749,118890.0,118880.0,0.20152]
[1752451442664,0.54325749,118890.0,118880.0,0.33024]
[1752451443352,0.54325791,118890.0,118880.0,0.33024]
[1752451443562,0.51803891,118890.0,118880.0,0.33024]
[1752451443768,0.51803891,118890.0,118880.0,0.62079075]
[1752451446125,0.51802211,118890.0,118880.0,0.62079075]
[1752451449080,0.51801053,118890.0,118880.0,0.62079075]
[1752451449708,0.51800885,118890.0,118880.0,0.62079075]
[1752451450249,0.51016532,118890.0,118880.0,0.62079075]
[1752451451335,0.44626532,118890.0,118880.0,0.62079075]
[1752451454385,0.51156532,118890.0,118880.0,0.62079075]
[1752451455067,0.49587993,118890.0,118880.0,0.62079075]
[1752451455284,0.43057993,118890.0,118880.0,0.62079075]
[1752451455968,0.43496238,118890.0,118880.0,0.62079075]
[1752451457767,0.43496238,118890.0,118880.0,0.62276075]
[1752451457985,0.42981238,118890.0,118880.0,0.68706075]
[1752451463538,0.43295238,118890.0,118880.0,0.55834075]
[1752451463760,0.43295238,118890.0,118880.0,0.68706075]
[1752451463995,0.43496238,118890.0,118880.0,0.62276075]
[1752451464227,0.43496238,118890.0,118880.0,0.65496075]
[1752451464462,0.43295238,118890.0,118880.0,0.68776075]
[1752451466408,0.42981238,118890.0,118880.0,0.68776075]
[1752451466643,0.42542993,118890.0,118880.0,0.68776075]
[1752451470190,0.42856993,118890.0,118880.0,0.65496075]
[1752451470407,0.49397993,118890.0,118880.0,0.62075075]
[1752451471515,0.43067993,118890.0,118880.0,0.62075075]
[1752451475038,0.49507993,118890.0,118880.0,0.62075075]
[1752451475942,0.52005354,118890.0,118880.0,0.62075075]
[1752451478821,0.48715354,118890.0,118880.0,0.62075075]
[1752451479053,0.45565354,118890.0,118880.0,0.62075075]
[1752451487318,0.51895354,118890.0,118880.0,0.62075075]
[1752451493633,0.48785354,118890.0,118880.0,0.62075075]
[1752451493836,0.45565354,118890.0,118880.0,0.62075075]
[1752451494064,0.45040354,118890.0,118880.0,0.68567075]
[1752451494264,0.0403865,118910.0,118900.0,0.0615]
[1752451494465,0.10059943,118910.0,118900.0,0.48275075]
[1752451494695,0.44059943,118910.0,118900.0,0.48275075]
[1752451494891,0.46143663,118910.0,118900.0,0.42125075]
[1752451495541,0.46343663,118910.0,118900.0,0.42125075]
[1752451496529,0.46643663,118910.0,118900.0,0.42125075]
[1752451498238,0.45069943,118910.0,118900.0,0.42125075]
[1752451499729,0.45069943,118910.0,118900.0,0.41919075]
[1752451499911,0.45069943,118910.0,118900.0,0.29055075]
[1752451500140,0.52934028,118910.0,118900.0,0.41919075]
[1752451500378,0.35454085,118900.0,118880.0,0.48367259]
[1752451500579,0.50673078,118890.0,118880.0,0.48367259]
[1752451500721,0.50972078,118890.0,118880.0,0.61231259]
[1752451502553,0.4936471,118890.0,118880.0,0.61231259]
[1752451502873,0.45600272,118890.0,118880.0,0.61231259]
[1752451503735,0.44610546,118890.0,118880.0,0.64620259]
[1752451504089,0.44610546,118890.0,118880.0,0.61231259]
[1752451506277,0.52424631,118890.0,118880.0,0.48367259]
[1752451506485,0.52424631,118890.0,118880.0,0.61231259]
[1752451507163,0.54882238,118890.0,118880.0,0.61231259]
[1752451507777,0.54881998,118890.0,118880.0,0.61231259]
[1752451507988,0.54881998,118890.0,118880.0,0.48367259]
[1752451508190,0.54881998,118890.0,118880.0,0.61231259]
[1752451509842,0.48521998,118890.0,118880.0,0.61231259]
[1752451510045,0.47067913,118890.0,118880.0,0.67760259]
[1752451510251,0.47067913,118890.0,118880.0,0.64411259]
[1752451510459,0.47067913,118890.0,118880.0,0.61231259]
[1752451510662,0.47067654,118890.0,118880.0,0.61231259]
[1752451511271,0.47067584,118890.0,118880.0,0.61231259]
[1752451512108,0.49589384,118890.0,118880.0,0.61231259]
[1752451513752,0.49589384,118890.0,118880.0,0.33016]
[1752451516714,0.49589384,118890.0,118880.0,0.20152]
[1752451516928,0.57343469,118890.0,118880.0,0.33012]
[1752451517813,0.57443469,118890.0,118880.0,0.33012]
[1752451518036,0.57543469,118890.0,118880.0,0.20152]